bitfinex/quotes_BTCUSD_20251201
["timestamp","ask_amount","ask_price","bid_price","bid_amount"]
[1764585891251,0.61582378,86774.0,86773.0,0.03778427]
[1764585893297,0.38534,86774.0,86773.0,0.03778427]
[1764585893449,0.61582378,86774.0,86773.0,0.03778427]
[1764585894497,0.38534,86774.0,86773.0,0.03778427]
[1764585894815,0.61582378,86774.0,86773.0,0.03778427]
[1764585897402,0.38534,86774.0,86773.0,0.26827071]
[1764585897603,0.33744,86774.0,86773.0,0.26827071]
[1764585898251,0.323,86774.0,86773.0,0.03778427]
[1764585898472,0.55348378,86774.0,86773.0,0.03778427]
[1764585898661,0.323,86774.0,86773.0,0.03778427]
[1764585900600,0.01152339,86780.0,86775.0,0.24200513]
[1764585900804,0.00039383,86781.0,86780.0,0.23046784]
[1764585901035,0.01191708,86781.0,86776.0,0.04296024]
[1764585901249,0.24238451,86781.0,86777.0,0.24199745]
[1764585901483,0.00039383,86781.0,86779.0,0.2304705]
[1764585901685,0.00039383,86781.0,86780.0,0.23046784]
[1764585902639,0.00239383,86781.0,86780.0,0.23046784]
[1764585902953,0.00039383,86781.0,86780.0,0.26190416]
[1764585904975,0.00039383,86781.0,86780.0,0.26290416]
[1764585905552,0.00039383,86781.0,86780.0,0.26190416]
[1764585905895,0.00039383,86781.0,86780.0,0.26790416]
[1764585906097,0.00039383,86781.0,86780.0,0.26823364]
[1764585906697,0.00039383,86781.0,86780.0,0.26323364]
[1764585907094,0.00039383,86781.0,86780.0,0.26723364]
[1764585915936,0.00039383,86781.0,86780.0,0.47805663]
[1764585916574,0.00039383,86781.0,86780.0,0.87805663]
[1764585916968,0.00039383,86781.0,86780.0,0.87705663]
[1764585917391,0.00039383,86781.0,86780.0,0.87805663]
[1764585918112,0.00039383,86781.0,86780.0,0.87405663]
[1764585918330,0.00039383,86781.0,86780.0,0.88005663]
[1764585926181,0.00039383,86781.0,86780.0,0.42481364]
[1764585926748,0.00039383,86781.0,86780.0,0.42381364]
[1764585926930,0.00039383,86781.0,86780.0,0.42481364]
[1764585927129,0.00039383,86781.0,86780.0,0.41881364]
[1764585927336,0.00039383,86781.0,86780.0,0.42181364]
[1764585927555,0.00039383,86781.0,86780.0,0.27351364]
[1764585927757,0.00039383,86781.0,86780.0,0.27051364]
[1764585927972,0.00039383,86781.0,86780.0,0.27251364]
[1764585928151,0.00039383,86781.0,86780.0,0.27151364]
[1764585928587,0.00039383,86781.0,86780.0,0.27251364]
[1764585930020,0.00039383,86781.0,86780.0,0.67251364]
[1764585933841,0.00039383,86781.0,86780.0,0.00332948]
[1764585933842,0.27473902,86781.0,86780.0,0.00332948]
[1764585934051,0.29971425,86781.0,86780.0,0.00332948]
[1764585934255,0.27473902,86781.0,86780.0,0.00332948]
[1764585934948,0.27473902,86781.0,86780.0,0.00032948]
[1764585935155,0.27473902,86781.0,86780.0,0.00232948]
[1764585935333,0.27473902,86781.0,86780.0,0.00132948]
[1764585935497,0.30938739,86781.0,86780.0,0.00032948]
[1764585935703,0.31038739,86781.0,86780.0,0.00032948]
[1764585937330,0.30938739,86781.0,86780.0,0.00032948]
[1764585937939,0.31138739,86781.0,86780.0,0.00032948]
[1764585945715,0.63438739,86781.0,86780.0,0.00032948]
[1764585951306,0.74961335,86781.0,86780.0,0.00032948]
[1764585951518,0.63438739,86781.0,86780.0,0.00032948]
[1764585963370,2.65930951,86781.0,86780.0,0.00032948]
[1764585968523,0.65930951,86781.0,86780.0,0.00032948]
[1764585970534,0.42884432,86781.0,86780.0,0.00032948]
[1764585970834,0.4039222,86781.0,86780.0,0.00032948]
[1764585971220,0.4039222,86781.0,86780.0,0.23079732]
[1764585971415,0.3775922,86781.0,86780.0,0.23079732]
[1764585971741,0.00239383,86781.0,86780.0,0.23079732]
[1764585972715,0.00239383,86781.0,86780.0,0.29332031]
[1764585972716,0.00039383,86781.0,86780.0,0.29332031]
[1764585972952,0.00139383,86781.0,86780.0,0.29332031]
[1764585973164,0.00139383,86781.0,86780.0,0.69332031]
[1764585974882,0.00039383,86781.0,86780.0,0.69332031]
[1764585975445,0.00039383,86781.0,86780.0,0.69832031]
[1764585975657,0.00039383,86781.0,86780.0,0.69932031]
[1764585977215,0.00039383,86781.0,86780.0,1.02232031]
[1764585980632,0.1,86800.0,86799.0,0.2304174]
[1764585980834,0.10011799,86800.0,86799.0,0.29531071]
[1764585983772,0.10011799,86800.0,86799.0,0.29631071]
[1764585984380,0.10011799,86800.0,86799.0,0.29831071]
[1764585984696,0.10011799,86800.0,86799.0,0.44661071]
[1764585985053,0.10011799,86800.0,86799.0,0.4454161]
[1764585985353,0.10011799,86800.0,86799.0,0.88004179]
[1764585985501,0.10011799,86800.0,86799.0,0.87804179]
[1764585985940,0.10011799,86800.0,86799.0,0.88304179]
[1764585986552,0.10011799,86800.0,86799.0,0.88204179]
[1764585986758,0.10011799,86800.0,86799.0,0.88304179]
[1764585987944,0.10011799,86800.0,86799.0,0.79845939]
[1764585990624,0.10011799,86800.0,86799.0,0.88612805]
[1764585995757,0.10011799,86800.0,86799.0,1.03442805]
[1764586011973,0.10011799,86800.0,86799.0,0.44961071]
[1764586012118,0.10011799,86800.0,86799.0,0.44861071]
[1764586012759,0.10011799,86800.0,86799.0,0.44961071]
[1764586013263,0.10011799,86800.0,86799.0,0.44461071]
[1764586013461,0.10011799,86800.0,86799.0,0.44661071]
[1764586013658,0.10011799,86800.0,86799.0,0.29831071]
[1764586014074,0.10011799,86800.0,86799.0,0.29731071]
[1764586014624,0.10011799,86800.0,86799.0,0.29831071]
[1764586023510,0.09965717,86800.0,86799.0,0.29831071]
[1764586024931,0.09965717,86800.0,86799.0,0.69831071]
[1764586025531,0.09965717,86800.0,86799.0,0.84661071]
[1764586033116,0.09965717,86800.0,86799.0,0.29831071]
[1764586033317,0.09965717,86800.0,86799.0,0.29103071]
[1764586033496,0.09965717,86800.0,86799.0,0.29831071]
[1764586037457,0.09908114,86800.0,86799.0,0.29831071]
[1764586038267,0.09885073,86800.0,86799.0,0.29831071]
[1764586044007,0.13863073,86800.0,86799.0,0.29103071]
[1764586044186,0.13863073,86800.0,86799.0,0.29831071]
[1764586044396,0.11512073,86800.0,86799.0,0.29831071]
[1764586044594,0.09885073,86800.0,86799.0,0.29831071]
[1764586048224,0.09885073,86800.0,86799.0,0.3608337]
[1764586048394,0.09885073,86800.0,86799.0,0.7608337]
[1764586048594,0.09885073,86800.0,86799.0,0.79546187]
[1764586049231,0.09885073,86800.0,86799.0,0.94376187]
[1764586051379,0.09885073,86800.0,86799.0,1.26676187]
[1764586064045,0.03922282,86800.0,86799.0,1.26676187]
[1764586064262,0.00154632,86824.0,86823.0,0.2303537]
[1764586064478,0.00154632,86824.0,86823.0,0.2376337]
[1764586064693,0.02883632,86824.0,86823.0,0.29524701]
[1764586065603,0.05288632,86824.0,86823.0,0.06489331]
[1764586066013,0.05288632,86824.0,86823.0,0.05761331]
[1764586066014,0.05688632,86824.0,86823.0,0.05761331]
[1764586066237,0.05688632,86824.0,86823.0,0.28796701]
[1764586066450,0.05688632,86824.0,86823.0,0.05761331]
[1764586066642,0.28723737,86824.0,86823.0,0.05761331]
[1764586067208,0.05688632,86824.0,86823.0,0.05761331]
[1764586069890,0.03283632,86824.0,86823.0,0.05761331]
[1764586070047,0.05641632,86824.0,86823.0,0.05761331]
[1764586071554,0.05641632,86824.0,86823.0,0.28796701]
[1764586071868,0.05641632,86824.0,86823.0,0.05761331]
[1764586072074,0.05641632,86824.0,86823.0,0.28796701]
[1764586075094,0.01700632,86824.0,86823.0,0.28796701]
[1764586076235,0.01300632,86824.0,86823.0,0.28796701]
[1764586076679,0.01500632,86824.0,86823.0,0.28796701]
[1764586077779,0.05384632,86824.0,86823.0,0.28796701]
[1764586078485,0.03026632,86824.0,86823.0,0.28796701]
[1764586079357,0.05384632,86824.0,86823.0,0.28796701]
[1764586080058,0.01500632,86824.0,86823.0,0.28796701]
[1764586080260,0.00354632,86824.0,86823.0,0.28796701]
[1764586080869,0.01533632,86824.0,86823.0,0.28796701]
[1764586081259,0.00354632,86824.0,86823.0,0.28796701]
[1764586084948,0.00354632,86824.0,86823.0,0.51025]
[1764586085913,0.00154632,86824.0,86823.0,0.49979]
[1764586086445,0.00154632,86824.0,86823.0,0.43726701]
[1764586098677,0.00154632,86824.0,86823.0,0.44454701]
[1764586098901,0.03031632,86824.0,86823.0,0.44454701]
[1764586099481,0.05421632,86824.0,86823.0,0.44454701]
[1764586099707,0.05421632,86824.0,86823.0,0.29624701]
[1764586099919,0.03031632,86824.0,86823.0,0.29624701]
[1764586101291,0.030086,86824.0,86823.0,0.29624701]
[1764586102671,0.030086,86824.0,86823.0,0.06589331]
[1764586102872,0.28433705,86824.0,86823.0,0.05861331]
[1764586103698,0.28433705,86824.0,86823.0,0.05761331]
[1764586104510,0.28533705,86824.0,86823.0,0.05761331]
[1764586107442,0.054986,86824.0,86823.0,0.05761331]
[1764586107652,0.28533705,86824.0,86823.0,0.05761331]
[1764586108063,0.054986,86824.0,86823.0,0.05761331]
[1764586108236,0.28533705,86824.0,86823.0,0.05761331]
[1764586113715,0.0115198,86807.0,86798.0,0.011521]
[1764586113922,0.0115198,86807.0,86794.0,0.01152153]
[1764586113923,0.01172,86800.0,86794.0,0.01152153]
[1764586114125,0.01172,86800.0,86799.0,0.06489331]
[1764586114542,0.01172,86800.0,86799.0,0.29531071]
[1764586114799,0.01172,86800.0,86799.0,0.06489331]
[1764586115109,0.01172,86800.0,86799.0,0.29731071]
[1764586115741,0.01172,86800.0,86799.0,0.06689331]
[1764586115948,0.01172,86800.0,86799.0,0.06789331]
[1764586116149,0.24213474,86800.0,86799.0,0.06789331]
[1764586116338,0.01172,86800.0,86799.0,0.06789331]
[1764586116538,0.01172,86800.0,86799.0,0.06689331]
[1764586116734,0.01172,86800.0,86799.0,0.06789331]
[1764586117378,0.24213474,86800.0,86799.0,0.06789331]
[1764586118229,0.01172,86800.0,86799.0,0.29831071]
[1764586119046,0.24213474,86800.0,86799.0,0.06789331]
[1764586119493,0.25851474,86800.0,86799.0,0.06789331]
[1764586120013,0.0281,86800.0,86799.0,0.29831071]
[1764586121679,0.05084,86800.0,86799.0,0.06789331]
[1764586121896,0.28125474,86800.0,86799.0,0.06789331]
[1764586122085,0.25851474,86800.0,86799.0,0.06789331]
[1764586122690,0.0281,86800.0,86799.0,0.29831071]
[1764586123143,0.01172,86800.0,86799.0,0.29831071]
[1764586125371,0.01172,86812.0,86809.0,0.23039043]
[1764586125574,0.01172,86812.0,86805.0,0.01152007]
[1764586125575,0.02323927,86811.0,86807.0,0.23039421]
[1764586125874,0.01172,86811.0,86808.0,0.24191298]
[1764586126476,0.01172,86811.0,86809.0,0.23039044]
[1764586126777,0.01172,86811.0,86808.0,0.24191298]
[1764586127396,0.26644611,86811.0,86808.0,0.23039139]
[1764586127598,0.26644611,86811.0,86807.0,0.0115198]
[1764586127599,0.2303882,86810.0,86809.0,0.001]
[1764586127806,0.02434,86810.0,86809.0,0.001]
[1764586128006,0.04039,86810.0,86807.0,0.24191553]
[1764586128405,0.04039,86810.0,86808.0,0.001]
[1764586128611,0.02434,86809.0,86808.0,0.001]
[1764586128950,0.04039,86809.0,86808.0,0.23039222]
[1764586129614,0.04039,86809.0,86808.0,0.23039351]
[1764586130074,0.04039,86809.0,86807.0,0.0125198]
[1764586130274,0.01605,86808.0,86807.0,0.24291584]
[1764586130452,0.01605,86808.0,86807.0,0.24191584]
[1764586131341,0.04039,86808.0,86807.0,0.24191584]
[1764586132144,0.04039,86808.0,86807.0,0.24291584]
[1764586132345,0.01605,86808.0,86807.0,0.24291584]
[1764586133162,0.01605,86808.0,86807.0,0.24391584]
[1764586134081,0.01605,86808.0,86807.0,0.002]
[1764586134299,0.01605,86808.0,86807.0,0.23239616]
[1764586135319,0.27078351,86808.0,86807.0,0.002]
[1764586135498,0.27078351,86808.0,86792.0,0.05761331]
[1764586135499,0.23043332,86793.0,86792.0,0.05761331]
[1764586135706,0.25809332,86793.0,86792.0,0.05761331]
[1764586135856,0.28243332,86793.0,86792.0,0.05761331]
[1764586136674,0.28443332,86793.0,86792.0,0.05761331]
[1764586140351,0.23045722,86784.0,86783.0,0.00728]
[1764586140554,0.23045988,86783.0,86782.0,0.0002662]
[1764586140759,0.27084988,86783.0,86782.0,0.00038419]
[1764586140963,0.04039,86783.0,86782.0,0.00038419]
[1764586142206,0.27084988,86783.0,86782.0,0.00038419]
[1764586142831,0.04039,86783.0,86782.0,0.00038419]
[1764586143084,0.02313206,86790.0,86786.0,0.24197196]
[1764586143295,0.02313206,86790.0,86787.0,0.23044919]
[1764586143484,0.01161,86790.0,86789.0,0.23044395]
[1764586144092,0.01161,86793.0,86789.0,0.24196614]
[1764586144244,0.01161,86793.0,86792.0,0.05761331]
[1764586144760,0.02766,86793.0,86792.0,0.05761331]
[1764586146491,0.02966,86793.0,86792.0,0.05761331]
[1764586147028,0.002,86793.0,86792.0,0.28804929]
[1764586147407,0.002,86793.0,86792.0,0.05761331]
[1764586149317,0.24848332,86793.0,86792.0,0.05761331]
[1764586149533,0.27282332,86793.0,86792.0,0.05761331]
[1764586149923,0.04239,86793.0,86792.0,0.05761331]
[1764586150662,0.01805,86793.0,86792.0,0.05761331]
[1764586151866,0.01805,86793.0,86792.0,0.28804929]
[1764586152067,0.01805,86793.0,86792.0,0.05761331]
[1764586152961,0.01805,86793.0,86792.0,0.28804929]
[1764586153172,0.01805,86793.0,86792.0,0.05761331]
[1764586153533,0.01805,86793.0,86792.0,0.28804929]
[1764586154012,0.24848332,86793.0,86792.0,0.05761331]
[1764586154386,0.27282332,86793.0,86792.0,0.05761331]
[1764586154635,0.04239,86793.0,86792.0,0.05761331]
[1764586155129,0.27282332,86793.0,86792.0,0.05761331]
[1764586157862,0.04239,86793.0,86792.0,0.28804929]
[1764586162037,0.04239,86793.0,86792.0,0.05761331]
[1764586163036,0.04239,86793.0,86792.0,0.28804929]
[1764586164266,0.002,86793.0,86792.0,0.28804929]
[1764586165234,0.01161,86797.0,86796.0,0.23042536]
[1764586165850,0.24192163,86805.0,86794.0,0.01152153]
[1764586165851,0.323,86807.0,86799.0,0.2304174]
[1764586166047,0.323,86807.0,86798.0,0.24194018]
[1764586166048,0.23039616,86807.0,86806.0,0.05761331]
[1764586166253,0.25348616,86807.0,86806.0,0.05761331]
[1764586166497,0.26957616,86807.0,86806.0,0.05761331]
[1764586167374,0.03918,86807.0,86806.0,0.05761331]
[1764586168078,0.26957616,86807.0,86806.0,0.05761331]
[1764586168632,0.27357616,86807.0,86806.0,0.05761331]
[1764586171014,0.04318,86807.0,86806.0,0.05761331]
[1764586171789,0.27357616,86807.0,86806.0,0.05761331]
[1764586172973,0.04318,86807.0,86806.0,0.05761331]
[1764586173228,0.04318,86807.0,86806.0,0.28801213]
[1764586173513,0.02009,86807.0,86806.0,0.28801213]
[1764586174487,0.04317,86807.0,86806.0,0.28801213]
[1764586182540,0.04317,86807.0,86806.0,0.05761331]
[1764586183253,0.04317,86807.0,86806.0,0.28801213]
[1764586183811,0.04317,86807.0,86806.0,0.05761331]
[1764586184005,0.27356616,86807.0,86806.0,0.05761331]
[1764586184594,0.0115206,86801.0,86796.0,0.01152126]
[1764586184797,0.23043332,86793.0,86792.0,0.05761331]
[1764586184998,0.02744,86793.0,86792.0,0.05761331]
[1764586185195,0.05052,86793.0,86792.0,0.05761331]
[1764586185633,0.28095332,86793.0,86792.0,0.05761331]
[1764586186718,0.05052,86793.0,86792.0,0.05761331]
[1764586186931,0.05052,86793.0,86792.0,0.28804929]
[1764586187485,0.05152,86793.0,86792.0,0.28804929]
[1764586188289,0.05052,86793.0,86792.0,0.05761331]
[1764586188628,0.05152,86793.0,86792.0,0.28804929]
[1764586189595,0.01269,86793.0,86792.0,0.28804929]
[1764586191113,0.01269,86793.0,86792.0,0.05761331]
[1764586191320,0.02899,86793.0,86792.0,0.05761331]
[1764586191530,0.05329,86793.0,86792.0,0.05761331]
[1764586191737,0.02275686,86793.0,86792.0,0.28804929]
[1764586192004,0.03905686,86793.0,86792.0,0.28804929]
[1764586192410,0.03905686,86793.0,86792.0,0.05761331]
[1764586193024,0.26949018,86793.0,86792.0,0.05761331]
[1764586193573,0.03905686,86793.0,86792.0,0.05761331]
[1764586195855,0.03905686,86793.0,86792.0,0.28804929]
[1764586198483,0.0163,86793.0,86792.0,0.28804929]
[1764586200366,0.0163,86793.0,86792.0,0.05761331]
[1764586200560,0.0406,86793.0,86792.0,0.05761331]
[1764586200966,0.0406,86793.0,86792.0,0.28804929]
[1764586201387,0.27103332,86793.0,86792.0,0.05761331]
[1764586203938,0.0163,86793.0,86792.0,0.28804929]
[1764586204087,0.01149,86794.0,86793.0,0.23043332]
[1764586205974,0.01249,86794.0,86793.0,0.23043332]
[1764586206187,0.001,86794.0,86793.0,0.23043332]
[1764586208941,0.01149,86809.0,86808.0,0.23039351]
[1764586209678,0.01149,86809.0,86808.0,0.28800682]
[1764586210257,0.01549,86809.0,86808.0,0.28800682]
[1764586211571,0.03179,86809.0,86808.0,0.05761331]
[1764586212428,0.03179,86809.0,86808.0,0.28800682]
[1764586214301,0.05609,86809.0,86808.0,0.05761331]
[1764586214507,0.01151967,86808.0,86800.0,0.00728]
[1764586214715,0.01151967,86808.0,86800.0,0.23769474]
[1764586214716,0.02779,86801.0,86800.0,0.23769474]
[1764586214918,0.02779,86801.0,86800.0,0.00728]
[1764586215119,0.28250209,86801.0,86800.0,0.00728]
[1764586215572,0.23041946,86799.0,86796.0,0.23042509]
[1764586215795,0.02779,86797.0,86795.0,0.24194422]
[1764586216006,0.0163,86796.0,86795.0,0.24194422]
[1764586216173,0.0406,86796.0,86795.0,0.24194422]
[1764586217024,0.0416,86796.0,86795.0,0.24194422]
[1764586217668,0.0416,86796.0,86793.0,0.00728]
[1764586217808,0.01522,86794.0,86792.0,0.05761331]
[1764586218023,0.01522,86793.0,86792.0,0.05761331]
[1764586218423,0.01522,86793.0,86792.0,0.28804929]
[1764586218980,0.01522,86793.0,86792.0,0.05761331]
[1764586219323,0.01522,86793.0,86792.0,0.28804929]
[1764586219879,0.01522,86793.0,86792.0,0.05761331]
[1764586220740,0.01522,86793.0,86792.0,0.28804929]
[1764586222019,0.01149,86797.0,86796.0,0.23042536]
[1764586222455,0.28105301,86797.0,86792.0,0.0691351]
[1764586222585,0.01522,86795.0,86794.0,0.2304299]
[1764586222774,0.01522,86795.0,86794.0,0.23043067]
[1764586224903,0.01149,86797.0,86796.0,0.23042536]
[1764586226257,0.02392,86799.0,86798.0,0.23042005]
[1764586227382,0.05051,86799.0,86795.0,0.24194918]
[1764586227552,0.01522,86796.0,86795.0,0.24194918]
[1764586228376,0.03996,86796.0,86795.0,0.24194918]
[1764586228579,0.01522,86796.0,86795.0,0.24194918]
[1764586229082,0.01622,86796.0,86795.0,0.24194918]
[1764586229342,0.001,86796.0,86795.0,0.24194918]
[1764586250953,0.04029,86796.0,86795.0,0.24194918]
[1764586254911,0.01634,86796.0,86795.0,0.24194918]
[1764586256153,0.001,86796.0,86795.0,0.24194918]
[1764586267784,0.04029,86796.0,86792.0,0.29956317]
[1764586268038,0.04029,86796.0,86792.0,0.0691351]
[1764586268039,0.02685,86793.0,86792.0,0.0691351]
[1764586268439,0.02685,86793.0,86792.0,0.29956842]
[1764586270309,0.01151,86793.0,86792.0,0.29956842]
[1764586273403,0.01151,86796.0,86795.0,0.23042802]
[1764586273612,0.01151,86799.0,86798.0,0.23042005]
[1764586275722,0.04614633,86799.0,86798.0,0.23042005]
[1764586276152,0.04714633,86799.0,86798.0,0.23042005]
[1764586276352,0.04767206,86799.0,86798.0,0.23042005]
[1764586278434,0.01303573,86799.0,86798.0,0.23042005]
[1764586279174,0.00152573,86799.0,86798.0,0.23042005]
[1764586281592,0.00152573,86799.0,86798.0,0.23042005]
[1764586282412,0.04014573,86799.0,86798.0,0.23042005]
[1764586282932,0.04014573,86799.0,86795.0,0.0115214]
[1764586283129,0.001,86799.0,86798.0,0.23042005]
[1764586283492,0.01609,86799.0,86798.0,0.23042005]
[1764586283695,0.03962,86799.0,86798.0,0.23042005]
[1764586283896,0.03962,86799.0,86797.0,0.23042132]
[1764586284131,0.03862,86798.0,86797.0,0.23042132]
[1764586285806,0.01152113,86797.0,86792.0,0.05761331]
[1764586286014,0.02641,86793.0,86792.0,0.05761331]
[1764586286210,0.02641,86793.0,86782.0,0.03475488]
[1764586286211,0.23045457,86785.0,86782.0,0.03475488]
[1764586286410,0.02641,86785.0,86782.0,0.01892111]
[1764586286655,0.02641,86783.0,86782.0,0.00739799]
[1764586287029,0.04994,86783.0,86782.0,0.23786052]
[1764586288573,0.04972403,86783.0,86782.0,0.23986052]
[1764586288737,0.04972403,86783.0,86782.0,0.24086052]
[1764586288934,0.04972403,86783.0,86782.0,0.23886052]
[1764586289140,0.02619403,86783.0,86782.0,0.24086052]
[1764586292330,0.01110403,86783.0,86782.0,0.24086052]
[1764586293129,0.03464081,86784.0,86783.0,0.23045988]
[1764586294769,0.01209,86789.0,86788.0,0.2304466]
[1764586295306,0.02445275,86789.0,86788.0,0.2304466]
[1764586295814,0.02445275,86789.0,86788.0,0.2324466]
[1764586297469,0.04112275,86789.0,86788.0,0.2324466]
[1764586299751,0.06520275,86789.0,86788.0,0.002]
[1764586299955,0.06520275,86789.0,86788.0,0.2324466]
[1764586300324,0.06520275,86789.0,86788.0,0.002]
[1764586300742,0.06520275,86789.0,86788.0,0.2324466]
[1764586301824,0.04112275,86789.0,86788.0,0.2324466]
[1764586303132,0.06520275,86789.0,86788.0,0.2324466]
[1764586307379,0.06520275,86789.0,86788.0,0.002]
[1764586308563,0.06520275,86789.0,86788.0,0.2324466]
[1764586309280,0.06520275,86789.0,86788.0,0.002]
[1764586310280,0.2956467,86789.0,86788.0,0.002]
[1764586311137,0.2956467,86789.0,86786.0,0.24197386]
[1764586311314,0.2463996,86787.0,86784.0,0.24197996]
[1764586311520,0.2304496,86787.0,86784.0,0.24197996]
[1764586311736,0.01595,86785.0,86784.0,0.01152286]
[1764586311938,0.01595,86785.0,86783.0,0.24198276]
[1764586312136,0.03464081,86786.0,86784.0,0.23045722]
[1764586312355,0.03464081,86786.0,86783.0,0.24198205]
[1764586312655,0.01595,86784.0,86783.0,0.24198205]
[1764586313063,0.04052,86784.0,86782.0,0.00011799]
[1764586313361,0.25824988,86783.0,86782.0,0.00011799]
[1764586313507,0.28281988,86783.0,86782.0,0.00011799]
[1764586313820,0.31746337,86783.0,86782.0,0.00011799]
[1764586314426,0.31746337,86783.0,86782.0,0.00111799]
[1764586315743,0.31746337,86783.0,86782.0,0.00011799]
[1764586322278,0.29289337,86783.0,86782.0,0.00011799]
[1764586322587,0.31746337,86783.0,86782.0,0.00011799]
[1764586347074,0.55347847,86776.0,86775.0,1e-08]
[1764586347274,0.60636759,86776.0,86775.0,1e-08]
[1764586347472,0.66573116,86776.0,86775.0,1e-08]
[1764586347689,0.68453813,86776.0,86775.0,1e-08]
[1764586348204,0.7740423,86776.0,86775.0,1e-08]
[1764586348416,0.7770423,86776.0,86775.0,1e-08]
[1764586349906,2.7770423,86776.0,86775.0,1e-08]
[1764586350309,2.8525761,86776.0,86775.0,1e-08]
[1764586350494,2.81113763,86776.0,86775.0,1e-08]
[1764586352124,2.72163346,86776.0,86775.0,1e-08]
[1764586352923,2.65852456,86776.0,86775.0,1e-08]
[1764586353571,2.6584631,86776.0,86775.0,1e-08]
[1764586354067,2.6511831,86776.0,86775.0,1e-08]
[1764586354244,2.68953949,86776.0,86775.0,1e-08]
[1764586354632,2.78027774,86776.0,86775.0,1e-08]
[1764586355671,2.74920135,86776.0,86775.0,1e-08]
[1764586356220,2.6584631,86776.0,86775.0,1e-08]
[1764586357565,0.6584631,86776.0,86775.0,1e-08]
[1764586357768,2.6584631,86776.0,86775.0,1e-08]
[1764586359477,2.728852,86776.0,86775.0,1e-08]
[1764586361904,2.75992839,86776.0,86775.0,1e-08]
[1764586362084,2.87515435,86776.0,86775.0,1e-08]
[1764586363425,2.75992839,86776.0,86775.0,1e-08]
[1764586364207,2.728852,86776.0,86775.0,1e-08]
[1764586364419,2.721572,86776.0,86775.0,1e-08]
[1764586364616,2.728852,86776.0,86775.0,1e-08]
[1764586366063,2.850352,86776.0,86775.0,1e-08]
[1764586366278,2.99665435,86776.0,86775.0,1e-08]
[1764586367160,2.86787435,86776.0,86775.0,1e-08]
[1764586367404,2.72583306,86776.0,86775.0,1e-08]
[1764586369298,2.69475667,86776.0,86775.0,1e-08]
[1764586370326,2.69445129,86776.0,86775.0,1e-08]
[1764586372511,0.69445129,86776.0,86775.0,1e-08]
[1764586372708,2.69445129,86776.0,86775.0,1e-08]
[1764586373020,2.69475667,86776.0,86775.0,1e-08]
[1764586375219,2.72582928,86776.0,86775.0,1e-08]
[1764586376186,2.69475667,86776.0,86775.0,1e-08]
[1764586376606,2.6511831,86776.0,86775.0,1e-08]
[1764586376790,2.68958627,86776.0,86775.0,1e-08]
[1764586377186,2.6584631,86776.0,86775.0,1e-08]
[1764586377793,2.3354631,86776.0,86775.0,1e-08]
[1764586379299,2.36659545,86776.0,86775.0,1e-08]
[1764586379859,2.68959545,86776.0,86775.0,1e-08]
[1764586380234,2.6584631,86776.0,86775.0,1e-08]
[1764586381536,2.6511831,86776.0,86775.0,1e-08]
[1764586381732,2.6584631,86776.0,86775.0,1e-08]
[1764586387932,0.6584631,86776.0,86775.0,1e-08]
[1764586388138,2.6584631,86776.0,86775.0,1e-08]
[1764586388553,2.70881125,86776.0,86775.0,1e-08]
[1764586389047,2.77096896,86776.0,86775.0,1e-08]
[1764586389276,2.74290658,86776.0,86775.0,1e-08]
[1764586390120,2.74290658,86776.0,86749.0,0.00154102]
[1764586390121,0.23054755,86750.0,86749.0,0.00154102]
[1764586390418,0.25846755,86750.0,86749.0,0.00154102]
[1764586390628,0.28288755,86750.0,86749.0,0.00154102]
[1764586392407,0.28388755,86750.0,86749.0,0.00154102]
[1764586397646,0.05334,86750.0,86749.0,0.00154102]
[1764586397861,0.05334,86750.0,86749.0,0.23209122]
[1764586397862,0.001,86750.0,86749.0,0.23209122]
[1764586400060,0.001,86750.0,86749.0,0.08851122]
[1764586400828,0.001,86750.0,86749.0,0.09579122]
[1764586402084,0.01243,86771.0,86770.0,0.23049441]
[1764586402566,0.05326,86771.0,86770.0,0.23049441]
[1764586403129,0.02882,86771.0,86770.0,0.23049441]
[1764586403328,0.01243,86771.0,86770.0,0.23049441]
[1764586403715,0.01243,86775.0,86774.0,0.23048378]
[1764586403921,0.01243,86777.0,86775.0,0.01152405]
[1764586404159,0.01243,86777.0,86774.0,0.23048378]
[1764586404160,0.04083,86776.0,86774.0,0.23048378]
[1764586404357,0.01639,86775.0,86774.0,0.23048378]
[1764586404535,0.04083,86775.0,86773.0,0.24201028]
[1764586404749,0.01639,86774.0,86772.0,0.28810001]
[1764586404930,0.01639,86773.0,86772.0,0.29962446]
[1764586405326,0.04083,86773.0,86772.0,0.29962446]
[1764586405522,0.01639,86773.0,86772.0,0.29962446]
[1764586406156,0.04083,86773.0,86772.0,0.29962446]
[1764586406363,0.04083,86773.0,86772.0,0.30062446]
[1764586410506,0.04083,86773.0,86772.0,0.05861331]
[1764586410671,0.04083,86773.0,86772.0,0.2891024]
[1764586410871,0.04083,86773.0,86772.0,0.05861331]
[1764586411294,0.04083,86773.0,86772.0,0.2891024]
[1764586411602,0.05326,86773.0,86772.0,0.2891024]
[1764586413146,0.05326,86773.0,86772.0,0.28949623]
[1764586413443,0.02882,86773.0,86772.0,0.28949623]
[1764586413605,0.01243,86773.0,86772.0,0.28949623]
[1764586414509,0.01243,86781.0,86776.0,0.23047847]
[1764586414712,0.01243,86781.0,86780.0,0.23046784]
[1764586414914,0.01268,86787.0,86785.0,0.23045281]
[1764586415118,0.00027275,86791.0,86790.0,0.23044129]
[1764586415355,0.00027275,86791.0,86788.0,0.24196893]
[1764586415556,0.02893,86789.0,86788.0,0.24196893]
[1764586415935,0.05379,86789.0,86788.0,0.24196893]
[1764586416487,0.05379,86789.0,86788.0,0.24496893]
[1764586416690,0.05379,86789.0,86788.0,0.24196893]
[1764586417173,0.05379,86789.0,86788.0,0.24496893]
[1764586418213,0.05379,86789.0,86788.0,0.24596893]
[1764586421801,0.02893,86789.0,86788.0,0.24596893]
[1764586422010,0.05379,86789.0,86788.0,0.24596893]
[1764586422487,0.05379,86789.0,86788.0,0.004]
[1764586423192,0.28423395,86789.0,86788.0,0.004]
[1764586423723,0.28423395,86789.0,86788.0,0.003]
[1764586424464,0.01152325,86781.0,86778.0,0.00728]
[1764586424675,0.2594005,86779.0,86778.0,0.00728]
[1764586425090,0.2842605,86779.0,86778.0,0.00728]
[1764586425491,0.05379,86779.0,86778.0,0.23775316]
[1764586426097,0.05379,86779.0,86778.0,0.24075316]
[1764586427108,0.05379,86779.0,86778.0,0.24175316]
[1764586427917,0.02893,86779.0,86778.0,0.24175316]
[1764586428891,0.01268,86779.0,86778.0,0.24175316]
[1764586429343,0.01268,86789.0,86788.0,0.2304466]
[1764586429505,0.00027275,86791.0,86790.0,0.23044129]
[1764586430453,0.01610275,86791.0,86790.0,0.23044129]